bitfinex-derivatives/quotes_SOLF0:USTF0_20250421
["timestamp","ask_amount","ask_price","bid_price","bid_amount"]
[1745234239390,37.02900478,139.13,139.04,9.74214816]
[1745234239584,36.98214816,139.13,139.09,7.1893]
[1745234239783,0.05307758,139.1,139.04,9.74214816]
[1745234240193,0.05307758,139.1,139.09,7.1894]
[1745234241895,0.05307758,139.1,139.08,7.1897]
[1745234242289,0.05307758,139.1,139.05,9.74214816]
[1745234242490,0.05307758,139.1,139.08,7.1896]
[1745234242693,0.05307758,139.1,139.05,9.74214816]
[1745234243188,0.05307758,139.1,139.09,7.1894]
[1745234243384,0.05307758,139.1,139.03,3.9319]
[1745234243592,27.24,139.09,139.02,361.0]
[1745234243791,27.24,139.09,139.0,13.53354816]
[1745234243992,0.04674818,139.07,139.0,13.53354816]
[1745234244389,0.04674818,139.07,139.04,7.192]
[1745234244892,0.04674818,139.07,139.0,13.53354816]
[1745234245094,27.30674818,139.07,139.02,9.74214816]
[1745234245399,27.30674818,139.07,139.06,7.1909]
[1745234245892,0.04674818,139.07,139.06,7.1909]
[1745234246100,2.0805,139.14,139.06,9.74214816]
[1745234246301,27.26,139.13,139.05,0.04794573]
[1745234246494,7.188,139.12,139.03,9.74214816]
[1745234246695,27.26,139.13,139.08,7.1898]
[1745234246899,27.26,139.12,139.06,9.74214816]
[1745234247299,0.05345165,139.1,139.08,0.04583393]
[1745234247599,0.05345165,139.1,139.05,9.74214816]
[1745234247898,0.05345165,139.1,139.08,7.23749391]
[1745234248099,0.05345165,139.1,139.08,0.04799391]
[1745234248398,0.05345165,139.1,139.09,7.1894]
[1745234248692,0.05345165,139.1,139.08,0.04799391]
[1745234248999,0.05345165,139.1,139.08,7.23749391]
[1745234249299,0.05345165,139.1,139.08,0.04799391]
[1745234249501,0.05345165,139.1,139.08,9.79014207]
[1745234249998,0.05345165,139.1,139.09,7.1894]
[1745234252003,3.8361,139.17,139.08,37.47014207]
[1745234252202,36.7662,139.17,139.1,9.74214816]
[1745234252398,36.7662,139.17,139.13,7.187]
[1745234253296,0.04672074,139.16,139.14,0.05434294]
[1745234253502,0.04672074,139.16,139.14,7.24114294]
[1745234254097,0.04672074,139.16,139.14,0.05434294]
[1745234255297,0.04672074,139.16,139.15,7.1863]
[1745234255900,576.4229,139.22,139.18,7.1845]
[1745234256099,27.68,139.21,139.14,9.74214816]
[1745234256298,27.68,139.21,139.15,3.943]
[1745234256700,27.68,139.21,139.19,7.1839]
[1745234256896,27.68,139.21,139.04,361.0]
[1745234257093,27.68,139.21,139.07,9.74214816]
[1745234257094,7.1857,139.17,139.07,9.74214816]
[1745234257293,27.68,139.16,139.08,2.0027]
[1745234257501,27.68,139.16,139.11,0.04535661]
[1745234257697,0.04533021,139.13,139.12,7.1878]
[1745234259199,27.68,139.19,139.15,7.1863]
[1745234259801,578.98214816,139.22,139.13,9.74214816]
[1745234259802,27.68,139.21,139.13,9.74214816]
[1745234260202,0.05297135,139.18,139.16,7.23867638]
[1745234260604,0.05297135,139.18,139.16,0.05307638]
[1745234261205,0.05297135,139.18,139.17,7.1853]
[1745234261903,7.135e-05,139.18,139.17,16.92744816]
[1745234263004,27.68,139.25,139.22,7.1824]
[1745234263707,1.8881,139.28,139.19,9.74214816]
[1745234264004,604.0395,139.29,139.21,9.74214816]
[1745234264305,0.05026254,139.25,139.22,0.04556723]
[1745234264804,0.05026254,139.25,139.24,7.1817]
[1745234265601,0.05026254,139.25,139.22,0.04556723]
[1745234266002,0.05026254,139.25,139.22,7.22786723]
[1745234266207,27.73026254,139.25,139.22,0.04556723]
[1745234266397,37.4724107,139.25,139.22,0.04556723]
[1745234267206,34.91156254,139.25,139.22,0.04556723]
[1745234267507,27.73026254,139.25,139.22,0.04556723]
[1745234267809,27.73026254,139.25,139.22,7.22806723]
[1745234268307,34.91166254,139.25,139.22,0.04556723]
[1745234268707,27.73026254,139.25,139.22,0.04556723]
[1745234269005,7.1818,139.24,139.22,0.04556723]
[1745234269408,7.1822,139.23,139.22,0.04556723]
[1745234269609,27.73026254,139.25,139.22,0.04556723]
[1745234270210,37.4724107,139.25,139.22,0.04556723]
[1745234270513,7.1822,139.23,139.22,0.04556723]
[1745234270910,27.73026254,139.25,139.22,0.04556723]
[1745234271506,7.1817,139.24,139.22,0.04556723]
[1745234271711,29.61366254,139.25,139.22,0.04556723]
[1745234272112,7.1819,139.24,139.22,0.04556723]
[1745234272313,29.61366254,139.25,139.22,0.04556723]
[1745234272911,36.79506254,139.25,139.22,7.22796723]
[1745234273118,29.61366254,139.25,139.22,0.04556723]
[1745234273715,7.1818,139.24,139.22,0.04556723]
[1745234274917,7.1822,139.23,139.22,0.04556723]
[1745234275415,9.74214816,139.24,139.14,9.74214816]
[1745234275616,7.183,139.22,139.19,7.1842]
[1745234276421,7.23152666,139.22,139.19,7.23836008]
[1745234277021,7.1832,139.21,139.19,0.05416008]
[1745234277520,34.8632,139.21,139.19,0.05416008]
[1745234278022,27.68,139.21,139.19,0.05416008]
[1745234278220,27.68,139.21,139.19,7.23806008]
[1745234278420,27.68,139.21,139.19,0.05416008]
[1745234279321,27.68,139.21,139.19,7.23836008]
[1745234279622,0.04852666,139.22,139.19,0.05416008]
[1745234280618,9.79067482,139.22,139.19,0.05416008]
[1745234280921,7.1837,139.2,139.19,0.05416008]
[1745234281120,35.4437,139.2,139.19,0.05416008]
[1745234281311,28.26,139.2,139.19,0.05416008]
[1745234281515,0.04852666,139.22,139.19,0.05416008]
[1745234282620,0.04852666,139.22,139.21,7.1832]
[1745234285129,2.666e-05,139.22,139.21,16.92534816]
[1745234285329,597.44,139.29,139.21,9.74214816]
[1745234285519,597.44,139.29,139.23,9.74214816]
[1745234285925,597.44,139.29,139.26,7.1802]
[1745234286423,597.44,139.29,139.26,7.1803]
[1745234286621,597.48713423,139.29,139.26,0.04870879]
[1745234287533,597.48713423,139.29,139.27,7.1798]
[1745234287730,607.22928239,139.29,139.19,361.0]
[1745234288029,9.74214816,139.28,139.24,7.1812]
[1745234288329,607.18214816,139.29,139.19,370.74214816]
[1745234288533,597.44,139.29,139.21,9.74214816]
[1745234288730,597.44,139.29,139.21,37.98214816]
[1745234289032,0.04609459,139.26,139.25,7.1808]
[1745234290830,0.04609459,139.26,139.24,0.04691975]
[1745234291331,0.04609459,139.26,139.24,7.22831975]
[1745234291732,0.04609459,139.26,139.24,0.04691975]
[1745234291929,0.04609459,139.26,139.25,7.1811]
[1745234298034,7.1782,139.31,139.28,7.1796]
[1745234298524,28.24,139.32,139.23,37.98214816]
[1745234298725,28.24,139.32,139.25,9.74214816]
[1745234299029,28.24,139.32,139.28,7.1795]
[1745234299228,0.05064518,139.3,139.28,7.1795]
[1745234299728,0.05064518,139.3,139.29,7.1791]
[1745234300037,0.05064518,139.3,139.27,0.05352318]
[1745234301831,0.05064518,139.3,139.27,7.23352318]
[1745234303537,7.22964518,139.3,139.27,0.05352318]
[1745234304436,0.05064518,139.3,139.27,7.23362318]
[1745234304935,7.22954518,139.3,139.27,0.05352318]
[1745234305132,0.05064518,139.3,139.27,0.05352318]
[1745234305335,9.74214816,139.29,139.21,361.0]
[1745234305532,33.927,139.28,139.24,7.1814]
[1745234305935,33.927,139.28,139.21,361.0]
[1745234306240,30.1745,139.28,139.21,361.0]
[1745234306535,0.04921161,139.26,139.23,0.04575208]
[1745234307229,7.23021161,139.26,139.23,0.04575208]
[1745234307938,7.1812,139.25,139.23,0.04575208]
[1745234308138,0.04921161,139.26,139.23,0.04575208]
[1745234308832,0.04921161,139.26,139.23,7.22765208]
[1745234309130,0.04921161,139.26,139.23,0.04575208]
[1745234309338,7.23011161,139.26,139.23,0.04575208]
[1745234310539,7.1813,139.25,139.23,0.04575208]
[1745234311039,7.1811,139.25,139.23,0.04575208]
[1745234311232,0.04921161,139.26,139.23,0.04575208]
[1745234312240,7.1811,139.25,139.23,0.04575208]
[1745234312537,0.04921161,139.26,139.23,0.04575208]
[1745234312941,7.1817,139.24,139.23,0.04575208]
[1745234315743,13.42556943,139.25,139.23,0.04575208]
[1745234316242,7.1817,139.24,139.23,0.04575208]
[1745234318243,13.42556943,139.25,139.23,0.04575208]
[1745234318446,7.1814,139.25,139.23,0.04575208]
[1745234318741,13.42556943,139.25,139.23,0.04575208]
[1745234318944,7.1817,139.24,139.23,0.04575208]
[1745234319145,0.04921161,139.26,139.23,0.04575208]
[1745234319339,6.29338104,139.26,139.23,7.22785208]
[1745234319546,0.04921161,139.26,139.23,7.22785208]
[1745234319746,6.29338104,139.26,139.23,7.22785208]
[1745234320837,13.47428104,139.26,139.23,0.04575208]
[1745234321045,0.04921161,139.26,139.23,6.28992151]
[1745234321540,0.04921161,139.26,139.24,7.1817]
[1745234322950,0.04921161,139.26,139.25,7.1811]
[1745234324253,0.04921161,139.26,139.24,7.1813]
[1745234324652,0.04921161,139.26,139.25,7.1811]
[1745234329152,0.04921161,139.26,139.25,13.42526943]
[1745234333751,6.24416943,139.3,139.25,6.24416943]
[1745234333955,34.96416943,139.31,139.25,6.24416943]
[1745234334454,34.96416943,139.31,139.27,7.1798]
[1745234334655,7.1786,139.3,139.27,7.1798]
[1745234334852,7.22787977,139.3,139.27,7.1798]
[1745234335053,7.22787977,139.3,139.27,7.22610689]
[1745234335858,7.22787977,139.3,139.28,7.1795]
[1745234336459,0.04927977,139.3,139.29,7.1791]
[1745234338258,0.04927977,139.3,139.28,7.1793]
[1745234339757,7.22787977,139.3,139.28,7.1793]
[1745234340159,7.22787977,139.3,139.27,7.22610689]
[1745234340353,6.24416943,139.29,139.27,0.04630689]
[1745234341059,13.42356943,139.29,139.27,0.04630689]
[1745234341461,7.1796,139.28,139.27,0.04630689]
[1745234341761,6.24416943,139.29,139.27,0.04630689]
[1745234342060,13.42356943,139.29,139.27,0.04630689]
[1745234342662,7.1796,139.28,139.27,0.04630689]
[1745234343262,13.42346943,139.29,139.27,7.22620689]
[1745234343561,6.24416943,139.29,139.27,0.04630689]
[1745234343758,13.42346943,139.29,139.27,0.04630689]
[1745234343960,6.24416943,139.29,139.27,0.04630689]
[1745234344364,13.42346943,139.29,139.27,0.04630689]
[1745234345564,7.1796,139.28,139.27,0.04630689]
[1745234346263,10.20826943,139.29,139.23,7.1817]
[1745234346463,6.24416943,139.25,139.18,395.30416943]
[1745234346763,34.30416943,139.25,139.2,6.24416943]
[1745234347059,34.30416943,139.25,139.22,7.1824]
[1745234347362,41.5395975,139.25,139.22,7.2307491]
[1745234348062,34.3580975,139.25,139.22,0.0483491]
[1745234348464,41.5395975,139.25,139.22,7.2309491]
[1745234348665,28.11392807,139.25,139.22,0.0483491]
[1745234349159,35.29512807,139.25,139.22,0.0483491]
[1745234349963,35.29512807,139.25,139.22,7.2308491]
[1745234351364,35.29512807,139.25,139.23,7.1821]
[1745234351562,28.11392807,139.25,139.23,7.1821]
[1745234352266,35.29542807,139.25,139.22,7.2309491]
[1745234352565,41.5395975,139.25,139.22,7.2309491]
[1745234353165,6.24416943,139.23,139.22,0.0483491]
[1745234353567,6.24416943,139.23,139.17,7.185]
[1745234353758,6.24416943,139.19,139.17,7.185]
[1745234354460,13.42866943,139.19,139.16,7.1856]
[1745234354763,13.48155028,139.19,139.16,7.23293144]
[1745234354965,13.42946943,139.17,139.16,0.04733144]
[1745234355267,6.29705028,139.19,139.16,0.04733144]
[1745234355560,13.48155028,139.19,139.16,7.23263144]
[1745234355765,0.05288085,139.19,139.16,0.04733144]
[1745234356263,13.48135028,139.19,139.16,0.04733144]
[1745234356659,13.48135028,139.19,139.16,7.23293144]
[1745234356864,7.1849,139.18,139.16,0.04733144]
[1745234357259,6.29705028,139.19,139.16,0.04733144]
[1745234357469,13.48155028,139.19,139.16,0.04733144]
[1745234357870,13.48155028,139.19,139.16,7.23283144]
[1745234358573,6.29705028,139.19,139.17,7.1851]
[1745234358873,0.05288085,139.19,139.16,0.04733144]
[1745234359277,7.23718085,139.19,139.16,7.23273144]
[1745234359972,13.48135028,139.19,139.16,7.23273144]
[1745234360172,7.1851,139.18,139.16,0.04733144]
[1745234360476,6.29705028,139.19,139.16,0.04733144]
[1745234360777,13.42946943,139.17,139.16,0.04733144]
[1745234363073,7.1853,139.17,139.16,0.04733144]
[1745234368778,7.1866,139.15,139.1,6.24416943]
[1745234368977,28.08,139.14,139.13,7.1873]
[1745234370978,0.05493277,139.15,139.14,7.1868]
[1745234371180,28.1,139.18,139.14,6.24416943]
[1745234371780,28.1,139.18,139.16,7.1855]
[1745234372581,28.14843142,139.18,139.16,7.23827365]
[1745234372875,35.33323142,139.18,139.16,7.23827365]
[1745234373286,35.33323142,139.18,139.16,0.05277365]
[1745234373883,35.33323142,139.18,139.16,7.23847365]
[1745234375987,13.42946943,139.17,139.16,0.05277365]
[1745234382889,7.187,139.14,139.1,6.24416943]
[1745234383081,35.267,139.14,139.1,6.24416943]
[1745234383587,35.267,139.14,139.12,7.1876]
[1745234383787,28.12709033,139.14,139.12,7.23911292]
[1745234383986,28.12709033,139.14,139.12,0.05151292]
[1745234384187,28.12709033,139.14,139.12,7.23891292]
[1745234384487,35.31399033,139.14,139.12,7.23891292]
[1745234385587,13.43146943,139.13,139.12,0.05151292]
[1745234387494,7.1885,139.11,139.06,8.17446943]
[1745234387684,13.43266943,139.11,139.06,8.17446943]
[1745234388086,7.1881,139.12,139.09,7.1891]
[1745234388379,7.1881,139.12,139.06,8.17446943]
[1745234388586,7.24094386,139.12,139.09,7.23794504]
[1745234388785,0.05284386,139.12,139.09,0.04884504]
[1745234389289,0.05284386,139.12,139.09,7.23804504]
[1745234389290,7.24094386,139.12,139.09,7.23804504]
[1745234389994,7.24094386,139.12,139.1,7.1888]
[1745234390290,0.05284386,139.12,139.1,7.1888]
[1745234391995,6.29701329,139.12,139.09,0.04884504]
[1745234392194,7.1887,139.11,139.09,0.04884504]
[1745234392593,7.1889,139.1,139.09,0.04884504]
[1745234393094,35.2689,139.1,139.09,0.04884504]
[1745234394196,28.08,139.1,139.09,0.04884504]
[1745234394392,34.32416943,139.1,139.04,4.0376]
[1745234394599,34.32416943,139.1,139.04,10.28176943]
[1745234394898,34.32416943,139.1,139.07,7.19]
[1745234395597,41.56810305,139.1,139.07,7.19]
[1745234397098,7.1894,139.09,139.07,7.19]
[1745234397694,34.37920305,139.1,139.06,7.1907]
[1745234397896,34.37920305,139.1,139.04,8.29356943]
[1745234397897,6.24416943,139.08,139.03,361.0]
[1745234398096,6.24416943,139.08,139.04,7.1918]
[1745234398397,7.24601079,139.07,139.04,7.1918]
[1745234398693,28.08,139.06,139.03,361.0]
[1745234398996,7.1915,139.05,139.0,8.17246943]
[1745234399195,569.38,139.04,138.92,369.42845186]
[1745234399394,6.24416943,138.97,138.92,8.42845186]
[1745234399593,34.32416943,138.97,138.92,8.42845186]
[1745234399795,0.05169756,138.96,138.92,8.42845186]
[1745234399990,0.05169756,138.96,138.92,14.67262129]
[1745234400194,0.05169756,138.96,138.92,8.42845186]
[1745234400395,0.05169756,138.96,138.92,14.67262129]
[1745234400592,7.24809756,138.96,138.92,14.67262129]
[1745234400799,6.29586699,138.96,138.92,15.62645186]
[1745234401003,6.29586699,138.96,138.92,8.42845186]
[1745234401497,7.197,138.95,138.92,8.42845186]
[1745234401801,6.29586699,138.96,138.92,15.62645186]
[1745234401996,7.1968,138.95,138.92,8.42845186]
[1745234402202,6.29586699,138.96,138.92,8.42845186]
[1745234402701,0.05169756,138.96,138.92,14.67262129]
[1745234403198,0.05169756,138.96,138.92,8.42845186]
[1745234403199,6.24416943,138.95,138.92,8.42845186]
[1745234403801,13.44096943,138.95,138.92,8.42845186]
[1745234404003,6.24416943,138.95,138.92,8.42845186]
[1745234404303,7.1977,138.93,138.92,8.42845186]
[1745234404605,28.18,138.93,138.92,8.42845186]
[1745234405097,28.18,138.93,138.92,15.62665186]
[1745234405301,28.18,138.93,138.92,8.42845186]
[1745234406102,28.18,138.93,138.91,7.1984]
[1745234406302,28.18,138.93,138.9,47.15707687]
[1745234406700,28.23260256,138.93,138.9,39.95797687]
[1745234407500,0.05260256,138.93,138.9,39.95797687]
[1745234407702,0.05260256,138.93,138.92,7.1982]
[1745234407906,0.05260256,138.93,138.92,13.44236943]
[1745234408205,28.2,138.96,138.95,7.1966]
[1745234408606,1.43853844,139.03,138.94,6.24416943]
[1745234408805,29.63853844,139.03,138.99,6.24416943]
[1745234408998,28.2,139.03,138.99,6.24416943]
[1745234409201,0.05145071,139.02,139.01,7.1932]
[1745234409803,28.2,139.07,139.01,6.24416943]
[1745234410107,28.2,139.07,139.03,6.24416943]
[1745234410904,0.04619573,139.06,139.04,0.05375354]
[1745234413098,9.82676176,139.06,139.04,0.05375354]
[1745234413405,7.1915,139.05,139.04,0.05375354]
[1745234416207,7.1933,139.02,138.98,7.1949]
[1745234416406,28.2,139.03,138.96,9.78056603]
[1745234416808,35.3925,139.03,139.0,7.1937]
[1745234417007,35.3925,139.03,138.96,9.78056603]
[1745234417311,35.3925,139.03,138.98,7.195]
[1745234417511,0.05525897,139.01,138.98,7.24757995]
[1745234417811,7.1946,138.99,138.98,0.05257995]
[1745234418004,28.2,138.99,138.92,364.8276]
[1745234418310,9.78056603,138.98,138.92,3.8276]
[1745234418810,7.1964,138.96,138.92,11.0258]
[1745234419012,9.78056603,138.98,138.92,3.8276]
[1745234419204,0.05076364,138.95,138.92,3.8276]
[1745234419709,0.05076364,138.95,138.93,7.1974]
[1745234420512,0.05076364,138.95,138.92,11.0256]
[1745234420808,0.05076364,138.95,138.92,3.8276]
[1745234421111,0.05076364,138.95,138.93,7.1974]
[1745234421813,0.05076364,138.95,138.94,7.1972]
[1745234422312,0.05076364,138.95,138.92,3.8276]
[1745234422515,0.05076364,138.95,138.89,28.2]
[1745234422820,7.1975,138.94,138.9,7.1987]
[1745234423112,7.1975,138.94,138.89,28.2]
[1745234423310,0.05076364,138.95,138.89,28.2]
[1745234423509,7.1974,138.94,138.9,7.1989]
[1745234423813,0.05076364,138.95,138.89,28.2]
[1745234424817,0.05076364,138.95,138.93,7.1973]
[1745234426510,0.05076364,138.95,138.94,7.1972]
[1745234430218,0.05076364,138.95,138.93,7.1975]
[1745234430619,0.05076364,138.95,138.89,389.2]
[1745234431119,0.05076364,138.95,138.94,7.1972]
[1745234432721,28.2,138.99,138.98,7.1951]
[1745234432918,40.77976603,139.02,138.98,7.1951]
[1745234433116,9.78056603,139.04,138.94,13.80096603]
[1745234433322,28.94,139.05,138.96,9.78056603]
[1745234433523,28.94,139.05,138.98,9.78056603]
[1745234433829,7.1912,139.06,139.03,7.1924]
[1745234434121,7.1912,139.06,138.98,370.78056603]
[1745234434423,7.24589776,139.06,139.03,0.04983269]
[1745234434924,0.05469776,139.06,139.03,0.04983269]
[1745234435230,9.78056603,139.05,139.03,0.04983269]
[1745234435521,7.192,139.04,139.03,0.04983269]
[1745234437525,16.97206603,139.05,139.03,0.04983269]
[1745234437727,7.1915,139.05,139.03,0.04983269]
[1745234438728,7.192,139.04,139.03,0.04983269]
[1745234439329,7.1931,139.02,138.99,2.0117]
[1745234439829,7.1928,139.03,139.0,7.194]
[1745234440431,9.8289062,139.03,138.98,361.0]
[1745234440631,9.8289062,139.03,138.94,604.8878]
[1745234440833,9.78056603,139.03,138.94,604.8878]
[1745234441032,0.05007445,139.0,138.98,7.1947]
[1745234441230,0.05007445,139.0,138.94,604.8878]
[1745234441436,0.05007445,139.0,138.98,7.1946]
[1745234444240,0.05007445,139.0,138.99,7.1946]
[1745234444739,7.1948,138.99,138.96,7.1961]
[1745234445441,7.1951,138.98,138.95,7.1964]
[1745234445641,0.05007445,139.0,138.94,3.9801]
[1745234446139,7.24457445,139.0,138.94,3.9801]
[1745234446540,0.05007445,139.0,138.94,3.9801]
[1745234446743,0.05007445,139.0,138.98,7.1951]
[1745234448044,0.05007445,139.0,138.94,3.9801]
[1745234448243,0.05007445,139.0,138.95,28.92]
[1745234449241,0.05007445,139.0,138.99,7.1946]
[1745234454950,0.05007445,139.0,138.95,28.92]
[1745234455353,0.05007445,139.0,138.99,7.1946]
[1745234457253,6.31611621,139.0,138.99,7.1946]
[1745234457855,0.05007445,139.0,138.99,7.1946]
[1745234460661,6.26604176,139.06,138.99,28.92]
[1745234460858,28.92,139.07,139.02,6.26604176]
[1745234461050,6.26604176,139.09,139.04,6.26604176]
[1745234461256,598.86,139.1,139.01,9.77874086]
[1745234461456,7.1901,139.08,139.01,9.77874086]
[1745234461758,0.05382662,139.06,139.05,7.1911]
[1745234462363,0.05382662,139.06,139.04,7.1917]
[1745234462563,0.05382662,139.06,139.03,0.04755037]
[1745234462961,0.05382662,139.06,139.05,7.1915]
[1745234463361,0.05382662,139.06,139.03,0.04755037]
[1745234463560,9.83256748,139.06,139.03,0.04755037]
[1745234464061,7.192,139.05,139.03,0.04755037]
[1745234464254,9.77874086,139.04,139.03,0.04755037]
[1745234464463,16.97074086,139.04,139.03,0.04755037]
[1745234464659,7.192,139.04,139.03,0.04755037]
[1745234465057,38.77256748,139.06,139.03,0.04755037]
[1745234465862,7.192,139.04,139.03,0.04755037]
[1745234466358,16.97074086,139.04,139.03,0.04755037]
[1745234468163,7.193,139.03,139.0,7.194]
[1745234468364,7.193,139.03,138.99,361.0]
[1745234468365,9.77874086,139.04,138.99,361.0]
[1745234468660,9.77874086,139.04,138.99,7.1943]
[1745234468863,9.77874086,139.02,138.94,361.0]
[1745234469163,28.94,139.04,138.95,28.94]
[1745234469365,0.04872983,138.99,138.95,28.94]
[1745234469663,0.04872983,138.99,138.96,9.77874086]
[1745234469866,28.94,139.04,138.96,370.77874086]
[1745234470165,28.94,139.04,138.97,6.0466]
[1745234470367,28.94,139.04,139.01,7.1932]
[1745234471065,28.99366014,139.04,139.01,0.05352165]
[1745234471260,38.772401,139.04,139.01,0.05352165]
[1745234471867,7.1927,139.03,139.01,0.05352165]
[1745234472164,38.772401,139.04,139.01,0.05352165]
[1745234472562,7.193,139.02,139.01,0.05352165]
[1745234472865,16.97174086,139.02,139.01,0.05352165]
[1745234473063,16.97874086,139.02,138.93,7.1973]
[1745234473268,9.77874086,138.96,138.89,365.0213]
[1745234473562,7.1974,138.94,138.9,7.1992]
[1745234473760,28.94,138.95,138.9,7.1992]
[1745234474163,0.05256282,138.94,138.9,7.1992]
[1745234474965,0.05256282,138.94,138.85,376.78434086]
[1745234475168,0.05256282,138.94,138.85,365.0213]
[1745234475469,9.77874086,138.89,138.83,33.71380744]
[1745234475659,38.77083871,138.91,138.83,33.71380744]
[1745234475969,0.04704901,138.88,138.83,33.71380744]
[1745234476269,0.04704901,138.88,138.85,7.2017]
[1745234476671,0.04704901,138.88,138.83,33.71380744]
[1745234476862,0.04704901,138.88,138.83,8.42845186]
[1745234477067,0.04704901,138.88,138.85,7.2016]
[1745234477263,0.04704901,138.88,138.8,9.77874086]
[1745234477673,28.94,138.9,138.85,7.2018]
[1745234477970,0.04614258,138.89,138.85,7.2018]
[1745234478166,0.04614258,138.89,138.83,28.94]
[1745234478473,0.04614258,138.89,138.86,9.77874086]
[1745234478673,0.04614258,138.89,138.88,7.2003]
[1745234479267,2.0067,138.94,138.87,28.96]
[1745234479572,13.86464086,138.98,138.88,9.77874086]
[1745234479772,7.1962,138.96,138.88,13.65924086]
[1745234479970,11.82254086,138.98,138.93,7.1977]
[1745234480469,0.04996397,138.97,138.94,7.24314258]
[1745234480674,0.04996397,138.97,138.94,0.04614258]
[1745234481073,0.04996397,138.97,138.96,7.1961]
[1745234482670,0.04996397,138.97,138.94,0.04614258]
[1745234483374,0.04996397,138.97,138.95,7.1962]
[1745234483571,0.04996397,138.97,138.94,0.04614258]
[1745234483975,614.0,138.96,138.82,253.36224086]
[1745234484167,614.0,138.96,138.86,9.77874086]
[1745234484371,7.1978,138.93,138.87,7.2004]
[1745234484874,7.1973,138.94,138.88,7.2002]
[1745234485079,0.05128995,138.91,138.88,7.2002]
[1745234485271,0.05128995,138.91,138.86,9.77874086]
[1745234485975,0.05128995,138.91,138.87,7.2005]
[1745234486674,0.05128995,138.91,138.88,7.2001]
[1745234486974,0.05128995,138.91,138.85,28.96]
[1745234487376,0.05128995,138.91,138.86,9.77874086]
[1745234487577,0.05128995,138.91,138.88,9.77874086]
[1745234487781,599.0,138.96,138.91,7.1983]
[1745234488078,28.96,138.96,138.89,28.96]
[1745234488471,38.73874086,138.99,138.9,9.77874086]
[1745234488874,38.73874086,138.99,138.92,7.1978]
[1745234489076,7.24543895,138.96,138.93,0.05128995]
[1745234489278,0.04903895,138.96,138.93,0.05128995]
[1745234489475,7.197,138.95,138.93,0.05128995]
[1745234489883,0.04903895,138.96,138.93,0.05128995]
[1745234490084,9.77874086,138.95,138.93,8.995e-05]
[1745234490283,9.77874086,138.94,138.84,9.77874086]
[1745234490477,7.1983,138.92,138.87,7.2005]
[1745234490684,7.1983,138.92,138.85,4.0625]
[1745234490885,9.77874086,138.94,138.85,13.84124086]
[1745234491287,7.24779515,138.91,138.86,7.2011]
[1745234491475,0.04879515,138.91,138.85,13.84124086]
[1745234491680,0.04879515,138.91,138.85,4.0625]
[1745234492386,7.1997,138.9,138.86,7.2012]
[1745234492585,0.04879515,138.91,138.85,4.0625]
[1745234493887,0.04879515,138.91,138.85,13.84124086]
[1745234494189,7.24769515,138.91,138.87,7.2007]
[1745234494590,0.04879515,138.91,138.85,13.84124086]
[1745234494785,0.04879515,138.91,138.86,29.26]
[1745234494983,0.04879515,138.91,138.87,9.77874086]
[1745234495390,0.04879515,138.91,138.86,29.26]
[1745234495591,29.26,138.96,138.89,9.77874086]
[1745234495786,29.26,138.96,138.87,9.77874086]
[1745234495986,39.03874086,138.96,138.86,253.36224086]
[1745234496489,7.1983,138.92,138.88,7.1999]
[1745234496689,39.03874086,138.96,138.87,9.77874086]
[1745234496891,0.054156,138.91,138.88,7.2001]
[1745234497088,0.054156,138.91,138.89,0.04685542]
[1745234498593,0.054156,138.91,138.89,7.24625542]
[1745234499392,7.252856,138.91,138.89,0.04685542]
[1745234499793,0.054156,138.91,138.89,0.04685542]
[1745234499994,0.054156,138.91,138.89,7.24615542]
[1745234500193,0.054156,138.91,138.89,0.04685542]
[1745234502397,9.77874086,138.9,138.83,2.0142]
[1745234502592,9.77874086,138.9,138.82,29.26]
[1745234502994,7.2011,138.87,138.83,7.2025]
[1745234503196,39.03874086,138.88,138.81,257.26384086]
[1745234503395,29.26,138.88,138.81,257.26384086]
[1745234503697,0.05245126,138.86,138.81,257.26384086]
[1745234504698,7.25385126,138.86,138.83,7.2025]
[1745234506396,0.05245126,138.86,138.77,1.9513]
[1745234506701,39.03874086,138.88,138.77,44.96674086]
[1745234506898,0.04814296,138.83,138.77,44.96674086]
[1745234508003,0.04814296,138.83,138.81,7.2036]
[1745234508702,0.04814296,138.83,138.82,7.2034]
[1745234510499,29.26,138.88,138.81,29.26]
[1745234510702,39.03874086,138.91,138.81,39.03874086]
[1745234510998,7.1995,138.9,138.87,7.2005]